fUSD/lending_fUSD_20260308
["ID","MTS","AMOUNT","RATE_DAILY","PERIOD"]
[407986432,1772973041090,-1000.0,0.00014247,2]
[407986433,1772973041099,-500.0,0.00014247,2]
[407986434,1772973041108,-530.88059829,0.00014247,2]
[407986435,1772973041117,-1000.0,0.00014247,2]
[407986436,1772973041127,-1000.0,0.00014247,2]
[407986437,1772973041136,-1000.0,0.00014247,2]
[407986438,1772973041146,-1927.0,0.00014274,2]
[407986439,1772973041155,-1503.0,0.00014303,2]
[407986440,1772973041165,-679.0,0.00014331,2]
[407986441,1772973041174,-6926.13768499,0.00014475,2]
[407986442,1772973041183,-6862.37287392,0.00014475,2]
[407986443,1772973041192,-158.01,0.000146,2]
[407986444,1772973041201,-150.93641972,0.00014628,2]
[407986445,1772973041210,-151.0,0.00014634,2]
[407986446,1772973041220,-151.0,0.00014634,2]
[407986447,1772973041229,-151.0,0.00014634,2]
[407986448,1772973041238,-151.0,0.00014634,2]
[407986449,1772973041247,-1500.0,0.00014716,2]
[407986450,1772973041256,-1000.0,0.00014795,2]
[407986451,1772973041266,-785.42431869,0.00014795,2]
[407986452,1772973041275,-500.0,0.00014795,2]
[407986453,1772973041285,-1500.0,0.00014795,2]
[407986454,1772973041294,-301.78790722,0.0001488,2]
[407986455,1772973041304,-500.0,0.0001488,2]
[407986456,1772973041315,-500.0,0.0001488,2]
[407986457,1772973041325,-152.8,0.00014891,2]
[407986458,1772973041335,-1673.25379173,0.00014918,2]
[407986459,1772973041346,-500.0,0.00014966,2]
[407986460,1772973041356,-500.0,0.00014966,2]
[407986461,1772973041365,-239.71698079,0.00014966,2]
[407986462,1772973041374,-500.0,0.00014966,2]
[407986463,1772973041384,-500.0,0.00014966,2]
[407986464,1772973041393,-500.0,0.00014966,2]
[407986465,1772973041403,-507.37727465,0.00014966,2]
[407986466,1772973041412,-500.0,0.00014973,2]
[407986467,1772973041423,-500.0,0.00014973,2]
[407986468,1772973041437,-500.0,0.00014973,2]
[407986469,1772973041447,-221.64,0.00015,7]
[407986470,1772973041457,-500.0,0.00015,2]
[407986471,1772973041466,-500.0,0.00015,30]
[407986472,1772973041477,-500.0,0.00015,30]
[407986473,1772973041486,-719.24067621,0.00015,30]
[407986474,1772973041495,-500.0,0.00015,30]
[407986475,1772973041507,-500.0,0.00015,30]
[407986476,1772973041518,-1958.02,0.00015147,2]
[407986477,1772973041529,-158.01,0.000152,2]
[407986478,1772973041538,-6926.13768499,0.0001525,2]
[407986479,1772973041548,-6862.37287392,0.0001525,2]
[407986480,1772973041557,-433.0,0.00015328,2]
[407986481,1772973041567,-2149.86978781,0.00015342,2]
[407986482,1772973041576,-500.0,0.00015428,2]
[407986483,1772973041585,-436.34,0.00015471,2]
[407986484,1772973041594,-1000.0,0.00015521,2]
[407986485,1772973041603,-500.0,0.00015521,2]
[407986486,1772973041613,-587.0,0.00015546,2]
[407986487,1772973041622,-587.0,0.00015546,2]
[407986488,1772973041631,-1000.0,0.00015548,2]
[407986489,1772973041640,-152.8,0.000156,2]
[407986490,1772973041648,-2351.0,0.00015638,2]
[407986491,1772973041658,-150.93641972,0.00015682,2]
[407986492,1772973041667,-384.16816296,0.00015717,2]
[407986493,1772973041676,-131264.3080298,0.00015727,2]
[407986494,1772973041686,-20565.3646844,0.00015727,2]
[407986495,1772973041695,-6076.36,0.00015737,2]
[407986496,1772973041704,-500.0,0.00015773,2]
[407986497,1772973041713,-500.0,0.00015773,2]
[407986498,1772973041722,-500.0,0.00015773,2]
[407986499,1772973041732,-500.0,0.00015773,2]
[407986500,1772973041741,-158.01,0.000158,2]
[407986501,1772973041751,-1004.88354371,0.00015837,2]
[407986502,1772973041760,-1216.6916726,0.00015883,2]
[407986503,1772973041769,-2000.0,0.0001589,2]
[407986504,1772973041779,-1958.02,0.00015904,2]
[407986505,1772973041788,-1673.25379173,0.00015914,2]
[407986506,1772973041798,-5000.0,0.0001596,2]
[407986507,1772973041807,-3079.32,0.00016,2]
[407986508,1772973041817,-383.55764632,0.00016,2]
[407986509,1772973041826,-6926.13768499,0.00016025,2]
[407986510,1772973041835,-6862.37287392,0.00016025,2]
[407986511,1772973041844,-9999.99,0.00016116,2]
[407986512,1772973041854,-3079.32,0.00016118,2]
[407986513,1772973041863,-3079.32,0.00016236,2]
[407986514,1772973041872,-152.8,0.0001631,2]
[407986515,1772973041882,-1000.0,0.00016321,2]
[407986516,1772973041892,-500.0,0.00016321,2]
[407986517,1772973041902,-1000.0,0.00016321,2]
[407986518,1772973041911,-1000.0,0.00016321,2]
[407986519,1772973041920,-29289.0260724,0.0001633,2]
[407986520,1772973041929,-4588.7531155,0.0001633,2]
[407986521,1772973041939,-158.01,0.000164,2]
[407986522,1772973041948,-1979.57,0.00016404,2]
[407986523,1772973041956,-271.4806077,0.0001652,2]
[407986524,1772973041965,-736.0,0.0001663,2]
[407986525,1772973041975,-1958.02,0.00016661,2]
[407986526,1772973041984,-1979.56,0.00016674,2]
[407986527,1772973041993,-313.76587814,0.00016711,2]
[407986528,1772973042002,-150.93641972,0.00016737,2]
[407986529,1772973042011,-358.3814775,0.00016737,2]
[407986530,1772973042020,-6926.13768499,0.000168,2]
[407986531,1772973042029,-6862.37287392,0.000168,2]
[407986532,1772973042039,-250.0,0.00016865,2]
[407986533,1772973042048,-500.0,0.00016868,2]
[407986534,1772973042057,-500.0,0.00016868,2]
[407986535,1772973042067,-1673.25379173,0.00016911,2]
[407986536,1772973042076,-158.01,0.00017,2]
[407986537,1772973042085,-503.0,0.00017,2]
[407986538,1772973042094,-152.8,0.00017019,2]
[407986539,1772973042103,-823.0,0.0001705,2]
[407986540,1772973042112,-265.0,0.0001705,2]
[407986541,1772973042121,-3292.0,0.00017202,2]
[407986542,1772973042131,-1958.02,0.00017418,2]
[407986543,1772973042140,-6926.13768499,0.00017575,2]
[407986544,1772973042149,-6862.37287392,0.00017575,2]
[407986545,1772973042158,-158.01,0.000176,2]
[407986546,1772973042168,-152.8,0.00017728,2]
[407986547,1772973042177,-150.93641972,0.00017791,2]
[407986548,1772973042186,-1673.25379173,0.00017907,2]
[407986549,1772973042195,-422.0,0.0001805,2]
[407986550,1772973042204,-1958.02,0.00018176,2]
[407986551,1772973042213,-158.01,0.000182,2]
[407986552,1772973042222,-6926.13768499,0.0001835,2]
[407986553,1772973042232,-6862.37287392,0.0001835,2]
[407986554,1772973042241,-152.8,0.00018437,2]
[407986555,1772973042251,-1152.0,0.00018699,2]
[407986556,1772973042260,-158.01,0.000188,2]
[407986557,1772973042269,-150.93641972,0.00018846,2]
[407986558,1772973042277,-1673.25379173,0.00018904,2]
[407986559,1772973042287,-2480.0,0.00018922,2]
[407986560,1772973042296,-500.0,0.00018999,2]
[407986561,1772973042305,-693.3919763,0.00018999,2]
[407986562,1772973042314,-174.61919141,0.00018999,2]
[407986563,1772973042323,-500.0,0.00018999,2]
[407986564,1772973042332,-500.0,0.00018999,2]
[407986565,1772973042342,-500.0,0.00018999,2]
[407986566,1772973042351,-500.0,0.00018999,2]
[407986567,1772973042361,-500.0,0.00018999,2]
[407986568,1772973042370,-500.0,0.00018999,2]
[407986569,1772973042379,-500.0,0.00018999,2]
[407986570,1772973042388,-500.0,0.00018999,2]
[407986571,1772973042397,-500.0,0.00018999,2]
[407986572,1772973042406,-500.0,0.00018999,2]
[407986573,1772973042415,-500.0,0.00018999,2]
[407986574,1772973042424,-301.40781056,0.00019,5]
[407986575,1772973042434,-14134.11492183,0.00019,2]
[407986576,1772973042445,-500.0,0.00019,5]
[407986577,1772973042454,-613.73590573,0.00019,2]
[407986578,1772973042463,-165.92845541,0.00019,2]
[407986579,1772973042473,-160.0,0.00019048,2]
[407986580,1772973042482,-719.04747942,0.00019054,2]
[407986581,1772973042491,-745.65223616,0.00019109,2]
[407986582,1772973042501,-6926.13768499,0.00019125,2]
[407986583,1772973042510,-6862.37287392,0.00019125,2]
[407986584,1772973042519,-152.8,0.00019146,2]
[407986585,1772973042528,-773.2413689,0.00019164,2]
[407986586,1772973042537,-2000.0,0.000192,2]
[407986587,1772973042546,-801.85129955,0.00019219,2]
[407986588,1772973042555,-831.51979763,0.00019274,2]
[407986589,1772973042565,-862.28603014,0.00019329,2]
[407986590,1772973042574,-894.19061326,0.00019384,2]
[407986591,1772973042583,-158.01,0.000194,2]
[407986592,1772973042592,-927.27566595,0.00019439,2]
[407986593,1772973042602,-491.0,0.00019476,2]
[407986594,1772973042611,-961.58486559,0.00019494,2]
[407986595,1772973042621,-500.0,0.000195,2]
[407986596,1772973042630,-491.0,0.00019512,2]
[407986597,1772973042639,-2090.269,0.00019512,2]
[407986598,1772973042648,-180.11276457,0.00019512,2]
[407986599,1772973042657,-181.08010149,0.00019547,2]
[407986600,1772973042666,-997.16350561,0.00019549,2]
[407986602,1772973042675,-500.0,0.00019599,2]
[407986604,1772973042684,-1071.92776362,0.000196,2]
[407986605,1772973042693,-1090.08840225,0.000196,2]
[407986606,1772973042702,-1087.71941875,0.000196,2]
[407986607,1772973042711,-1147.70706528,0.000196,2]
[407986608,1772973042720,-1068.07735776,0.000196,2]
[407986609,1772973042729,-1095.8809385,0.000196,2]
[407986610,1772973042738,-1103.04364317,0.000196,2]
[407986611,1772973042747,-1141.03506525,0.000196,2]
[407986612,1772973042756,-1063.49979842,0.000196,2]
[407986613,1772973042766,-1001.75908763,0.000196,2]
[407986614,1772973042775,-1043.35592794,0.000196,2]
[407986615,1772973042786,-1089.64603377,0.000196,2]
[407986616,1772973042797,-1040.6396703,0.000196,2]
[407986617,1772973042806,-1100.98529581,0.000196,2]
[407986618,1772973042815,-1084.41488557,0.000196,2]
[407986619,1772973042824,-1022.79476501,0.000196,2]
[407986621,1772973042833,-1076.20531492,0.000196,2]
[407986622,1772973042842,-1031.12617722,0.000196,2]
[407986624,1772973042851,-1024.26683863,0.000196,2]
[407986626,1772973042860,-1011.53249881,0.000196,2]
[407986628,1772973042870,-1006.45985764,0.000196,2]
[407986630,1772973042880,-172.0,0.000196,2]
[407986632,1772973042889,-1106.80810231,0.000196,2]
[407986633,1772973042898,-1075.19731733,0.000196,2]
[407986634,1772973042908,-1089.92827632,0.000196,2]
[407986635,1772973042916,-1139.22413154,0.000196,2]
[407986636,1772973042926,-1141.78046417,0.000196,2]
[407986637,1772973042936,-1718.00933156,0.000196,2]
[407986638,1772973042946,-1224.02057257,0.000196,2]
[407986640,1772973042954,-491.0,0.00019623,2]
[407986642,1772973042964,-446.0,0.00019641,2]
[407986643,1772973042973,-2000.0,0.000197,2]
[407986644,1772973042982,-491.0,0.00019727,2]
[407986645,1772973042993,-446.0,0.00019728,2]
[407986646,1772973043003,-7000.0,0.000198,2]
[407986648,1772973043012,-1666.66667,0.000198,2]
[407986650,1772973043024,-1666.66666,0.000198,2]
[407986651,1772973043035,-1666.66667,0.000198,2]
[407986652,1772973043045,-1666.66667,0.000198,2]
[407986653,1772973043057,-446.12402339,0.00019873,2]
[407986654,1772973043067,-500.0,0.00019873,2]
[407986655,1772973043079,-496.89161096,0.00019873,2]
[407986656,1772973043088,-500.0,0.00019873,2]
[407986657,1772973043099,-1741.96185551,0.000199,2]
[407986658,1772973043109,-929.0793,0.000199,2]
[407986659,1772973043119,-32923.6528,0.000199,2]
[407986660,1772973043129,-1000.0,0.000199,2]
[407986661,1772973043139,-10000.0,0.000199,2]
[407986662,1772973043149,-258.03814449,0.000199,2]
[407986663,1772973043159,-150.93641972,0.000199,2]
[407986664,1772973043168,-358.3814775,0.000199,2]
[407986665,1772973043177,-6926.13768499,0.000199,2]
[407986666,1772973043188,-1673.25379173,0.000199,2]
[407986667,1772973043199,-6862.37287392,0.000199,2]
[407986668,1772973043211,-313.76587814,0.000199,2]
[407986669,1772973043221,-4077.0,0.000199,2]
[407986670,1772973043230,-350.0,0.0001995,2]
[407986671,1772973043241,-491.0,0.0001997,2]
[407986672,1772973043251,-500.0,0.00019973,2]
[407986673,1772973043261,-446.0,0.00019974,2]
[407986674,1772973043271,-384.16816296,0.0001999,2]
[407986675,1772973043281,-491.0,0.00019996,2]
[407986676,1772973043290,-151.0,0.00019997,2]
[407986677,1772973043300,-300.0,0.00019999,2]
[407986678,1772973043311,-300.0,0.00019999,2]
[407986679,1772973043321,-300.0,0.00019999,2]
[407986680,1772973043330,-666.0,0.00019999,2]
[407986681,1772973043339,-50785.398046,0.00019999,2]
[407986682,1772973043349,-29844.9708074,0.00019999,2]
[407986683,1772973043359,-10634.1417866,0.00019999,2]
[407986684,1772973043370,-7956.624777,0.00019999,2]
[407986685,1772973043381,-150.0,0.00019999,2]
[407986686,1772973043390,-215.40583698,0.00019999,2]
[407986687,1772973043399,-3927.0,0.0002,2]
[407986688,1772973043408,-3425641.34510497,0.0002,2]
[407986689,1772973043425,-137000.00000026,0.0002,2]
[407986690,1772973043437,-9739.28995935,0.0002,2]
[407986698,1772973043930,-98.30527428,0.0002,2]
[407986699,1772973043941,-487772.00631218,0.0002,2]
[407986700,1772973043950,-1780.01,0.0002,7]
[407986701,1772973043959,-500.0,0.0002,14]
[407986702,1772973043968,-3951106.91769685,0.0002,2]
[407986703,1772973043979,-3857.15129415,0.0002,2]
[407986704,1772973043990,-606.6000014,0.0002,2]
[407986705,1772973044001,-6171.7136666,0.0002,2]
[407986706,1772973044068,-16146.36300254,0.0002,2]
[407986719,1772973045876,-164.68299801,0.0002,2]
[407986721,1772973045887,-1976.54926513,0.0002,2]
[407986722,1772973045898,-1138.00561177,0.0002,2]
[407986725,1772973046011,-2100.0,0.0002,2]
[407986726,1772973046036,-256.05988961,0.0002,2]
[407986727,1772973046047,-3122.81980553,0.0002,2]
[407986728,1772973046058,-101949.999999,0.0002,2]
[407986734,1772973315602,-500.0,0.00012664,2]
[407986735,1772973315625,-250.0,0.00012743,2]
[407986736,1772973315646,-200.0,0.00012759,2]
[407986737,1772973339652,-627.0,0.00012795,2]
[407986738,1772973339673,-177.0,0.00012795,2]
[407986739,1772973349342,1838.66246858,0.00012773,2]
[407986740,1772973361315,823.50944647,0.00012773,2]
[407986741,1772973363211,383.82808495,0.00012773,2]
[407986783,1772973444293,500.0,0.00012564,2]
[407986785,1772973568354,185.59,0.00012664,2]
[407986786,1772973568801,185.59,0.00012664,2]
[407986787,1772973569297,139.42939998,0.00012664,2]
[407986788,1772973578716,-46.16060002,0.00012664,2]
[407986789,1772973578739,-185.59,0.00012664,2]
[407986790,1772973578759,-185.61,0.00012664,2]
[407986791,1772973578785,-150.95645349,0.000127,2]
[407986792,1772973578810,-154.27055874,0.000127,2]
[407986793,1772973578832,-1403.21204333,0.00012724,2]
[407986794,1772973578852,-1056.5346,0.00012724,2]
[407986795,1772973579076,-300.0,0.00012772,2]
[407986796,1772973579097,-300.0,0.00012772,2]
[407986797,1772973579119,-317.66574442,0.00012773,2]
[407986798,1772973611878,158.1,9.936e-05,2]
[407986799,1772973735906,500.0,8e-05,2]
[407986800,1772973746953,500.0,8e-05,2]
[407986801,1772973907538,-1360.88,0.00011507,2]
[407986802,1772973907564,-539.12,0.0001188,2]
[407986803,1772973924998,-3315.04475448,0.0001188,2]
[407986804,1772973925020,-200.0,0.00011937,2]
[407986805,1772973925042,-150.0,0.0001196,2]
[407986806,1772973932780,-1200.0,0.00012043,2]
[407986807,1772973932801,-300.0,0.00012043,2]
[407986808,1772973932822,-2834.95524552,0.00012044,2]
[407986824,1772974232052,-2256.41771873,0.00012044,2]
[407986826,1772974232063,-215.45703575,0.00012044,2]
[407986828,1772974232073,-51.12091112,0.00012055,2]
[407986829,1772974232084,-4008.70908888,0.00012055,2]
[407986830,1772974232094,-1200.0,0.00012132,2]
[407986831,1772974232103,-1357.02,0.00012133,2]
[407986832,1772974232112,-213.74076158,0.00012133,2]
[407986833,1772974232124,-321.55982235,0.00012133,2]
[407986834,1772974232135,-21981.70941607,0.00012133,2]
[407986835,1772974232146,-122.42333622,0.00012135,2]
[407986836,1772974232163,-77.57666378,0.00012135,2]
[407986837,1772974232172,-269.85841688,0.00012148,2]
[407986838,1772974232230,-298.56958843,0.00012148,2]
[407986839,1772974232239,-250.0,0.00012148,2]
[407986840,1772974232249,-500.0,0.00012252,2]
[407986841,1772974232259,-158.1,0.0001242,2]
[407986842,1772974232268,-88.55029325,0.00012564,2]
[407986843,1772974232279,-296.76030675,0.00012564,2]
[407986845,1772974232289,-150.0,0.00012657,2]
[407986847,1772974232299,-300.0,0.00012657,2]
[407986848,1772974232309,-18237.36401686,0.00012723,2]
[407986850,1772974232318,-1000.0,0.00012723,2]
[407986851,1772974232327,-10525.08335997,0.00012724,2]
[407986852,1772974232339,-1004.88354371,0.00012772,2]
[407986853,1772974232349,-180.11276457,0.00012773,2]
[407986854,1772974232358,-2414.5,0.00012773,2]
[407986855,1772974232367,-351.9747231,0.00012773,2]
[407986856,1772974232377,-198.93673828,0.00012773,2]
[407986857,1772974232386,-379.75582371,0.00012773,2]
[407986858,1772974232396,-604.66666668,0.00012773,2]
[407986859,1772974232406,-1590.0,0.00012795,2]
[407986860,1772974232415,-172.0,0.00012795,2]
[407986861,1772974232425,-822.62941895,0.00012814,2]
[407986862,1772974232434,-151.0,0.00012816,2]
[407986863,1772974232443,-500.0,0.00012816,2]
[407986864,1772974232453,-151.0,0.00012816,2]
[407986865,1772974232463,-500.0,0.00012816,2]
[407986866,1772974232473,-200.0,0.00012816,2]
[407986867,1772974232483,-151.0,0.00012816,2]
[407986868,1772974232492,-500.0,0.00012816,2]
[407986869,1772974232501,-500.0,0.00012816,2]
[407986870,1772974232511,-151.0,0.00012816,2]
[407986871,1772974232520,-151.0,0.00012816,2]
[407986872,1772974232530,-500.0,0.00012816,2]
[407986873,1772974232541,-500.0,0.00012816,2]
[407986874,1772974232550,-151.0,0.00012816,2]
[407986875,1772974232561,-151.0,0.00012816,2]
[407986876,1772974232571,-500.0,0.00012816,2]
[407986877,1772974232580,-151.0,0.00012816,2]
[407986878,1772974232591,-500.0,0.00012816,2]
[407986879,1772974232601,-151.0,0.00012816,2]
[407986880,1772974232611,-151.0,0.00012816,2]
[407986881,1772974232621,-500.0,0.00012816,2]
[407986882,1772974232630,-151.0,0.00012816,2]
[407986883,1772974232640,-500.0,0.00012816,2]
[407986884,1772974232649,-500.0,0.00012816,2]
[407986885,1772974232659,-500.0,0.00012816,2]
[407986886,1772974232669,-500.0,0.00012816,2]
[407986887,1772974232678,-151.0,0.00012816,2]
[407986888,1772974232688,-151.42631785,0.00012816,2]
[407986889,1772974232697,-500.0,0.00012816,2]
[407986890,1772974232707,-151.0,0.00012816,2]
[407986891,1772974232716,-500.0,0.00012816,2]
[407986892,1772974232726,-151.0,0.00012816,2]
[407986893,1772974232736,-500.0,0.00012816,2]
[407986894,1772974232745,-151.0,0.00012816,2]
[407986895,1772974232755,-500.0,0.00012816,2]
[407986896,1772974232765,-151.0,0.00012816,2]
[407986897,1772974232774,-240.83222841,0.00012816,2]
[407986898,1772974232783,-151.0,0.00012816,2]
[407986899,1772974232795,-151.0,0.00012816,2]
[407986900,1772974232804,-151.0,0.00012816,2]
[407986901,1772974232814,-151.0,0.00012816,2]
[407986902,1772974232823,-151.0,0.00012816,2]
[407986903,1772974232833,-151.0,0.00012816,2]
[407986904,1772974232844,-151.0,0.00012816,2]
[407986905,1772974232854,-151.0,0.00012816,2]
[407986906,1772974232864,-151.0,0.00012816,2]
[407986907,1772974232874,-151.0,0.00012816,2]
[407986908,1772974232884,-151.0,0.00012816,2]
[407986909,1772974232893,-151.0,0.00012816,2]
[407986910,1772974232903,-151.0,0.00012816,2]
[407986911,1772974232914,-151.0,0.00012816,2]
[407986912,1772974232933,-151.0,0.00012816,2]
[407986913,1772974232943,-500.0,0.00012816,2]
[407986914,1772974232954,-151.0,0.00012821,2]
[407986915,1772974232963,-500.0,0.00012822,2]
[407986916,1772974232973,-500.0,0.00012822,2]
[407986917,1772974232983,-500.0,0.00012822,2]
[407986918,1772974232995,-500.0,0.00012822,2]
[407986919,1772974233005,-500.0,0.00012822,2]
[407986920,1772974233015,-500.0,0.00012822,2]
[407986921,1772974233027,-1413.09984185,0.00012822,2]
[407986922,1772974233037,-500.0,0.00012822,2]
[407986923,1772974233047,-1413.09984185,0.00012822,2]
[407986924,1772974233057,-500.0,0.00012822,2]
[407986925,1772974233067,-481.66163834,0.00012822,2]
[407986926,1772974233076,-500.0,0.00012822,2]
[407986927,1772974233085,-500.0,0.00012822,2]
[407986928,1772974233095,-500.0,0.00012822,2]
[407986929,1772974233104,-273.51966372,0.00012822,2]
[407986930,1772974233114,-1413.09984185,0.00012822,2]
[407986931,1772974233123,-500.0,0.00012822,2]
[407986932,1772974233132,-1413.09984185,0.00012822,2]
[407986933,1772974233351,-500.0,0.00012822,2]
[407986934,1772974233362,-181.32971574,0.00012822,2]
[407986935,1772974233372,-291.64001578,0.00012822,2]
[407986936,1772974233382,-1413.09984185,0.00012822,2]
[407986937,1772974233391,-500.0,0.00012822,2]
[407986938,1772974233400,-1413.09984185,0.00012822,2]
[407986939,1772974233412,-500.0,0.00012822,2]
[407986940,1772974233423,-500.0,0.00012822,2]
[407986941,1772974233433,-1413.09984185,0.00012822,2]
[407986942,1772974233443,-500.0,0.00012822,2]
[407986943,1772974233454,-1413.09984185,0.00012822,2]
[407986944,1772974233464,-500.0,0.00012822,2]
[407986945,1772974233474,-613.48,0.00012823,2]
[407986946,1772974233484,-500.0,0.00012823,2]
[407986947,1772974233493,-500.0,0.00012823,2]
[407986948,1772974233503,-292.0404879,0.00012823,2]
[407986949,1772974233512,-500.0,0.00012823,2]
[407986950,1772974233521,-238.45346357,0.00012823,2]
[407986951,1772974233531,-500.0,0.00012823,2]
[407986952,1772974233540,-500.0,0.00012823,2]
[407986953,1772974233550,-500.0,0.00012823,2]
[407986954,1772974233559,-500.0,0.00012823,2]
[407986955,1772974233568,-500.0,0.00012823,2]
[407986956,1772974233577,-500.0,0.00012823,2]
[407986957,1772974233587,-384.69670447,0.00012823,2]
[407986958,1772974233596,-500.0,0.00012823,2]
[407986959,1772974233605,-500.0,0.00012823,2]
[407986960,1772974233618,-500.0,0.00012823,2]
[407986961,1772974233628,-600.0,0.00012823,2]
[407986962,1772974233639,-232.09609424,0.00012823,2]
[407986963,1772974233648,-65930.65254993,0.00012824,2]
[407986964,1772974233832,-10048.75806382,0.00012824,2]
[407986965,1772974233846,-16622.98945334,0.00012824,2]
[407986966,1772974233857,-492.21212702,0.00012824,2]
[407986967,1772974233940,-894.73635487,0.00012822,2]
[407986968,1772974233953,-518.36348698,0.00012822,2]
[407986969,1772974233963,-265.96395794,0.00012822,2]
[407986970,1772974233977,-687.16138692,0.00012822,2]
[407986971,1772974234030,-459.97449699,0.00012822,2]
[407986972,1772974234040,-249.17490538,0.00012822,2]
[407986973,1772974234050,-697.85785497,0.00012822,2]
[407986974,1772974234062,-715.24198688,0.00012822,2]
[407986975,1772974234071,-363.79317763,0.00012822,2]
[407986976,1772974234081,-500.0,0.00012822,2]
[407986977,1772974234091,-54.97378547,0.00012822,2]
[407986978,1772974234104,-1358.12605638,0.00012822,2]
[407986979,1772974234114,-500.0,0.00012822,2]
[407986980,1772974234124,-1217.33251691,0.00012824,2]
[407986981,1772974234135,-2020.35,0.00012824,2]
[407986982,1772974234147,-1286.0085527,0.00012824,2]
[407986983,1772974238187,-449.3404125,0.00012822,2]
[407986984,1772974238199,-780.00000001,0.00012822,2]
[407986985,1772974238211,-183.75942934,0.00012822,2]
[407986986,1772974238220,-551.68891097,0.00012822,2]
[407986987,1772974238230,-861.41093088,0.00012822,2]
[407986988,1772974238239,-1413.09984185,0.00012822,2]
[407986989,1772974238248,-784.71560603,0.00012822,2]
[407986990,1772974238258,-298.62469339,0.00012822,2]
[407986991,1772974238286,-329.75954243,0.00012822,2]
[407986992,1772974238296,-500.0,0.00012822,2]
[407986993,1772974238305,-793.94531973,0.00012822,2]
[407986994,1772974238315,-619.15452212,0.00012822,2]
[407986995,1772974238324,-1413.09984185,0.00012822,2]
[407986996,1772974238333,-1413.09984185,0.00012822,2]
[407986997,1772974238342,-1413.09984185,0.00012822,2]
[407986998,1772974238351,-1413.09984185,0.00012822,2]
[407986999,1772974238360,-1413.09984185,0.00012822,2]
[407987000,1772974238369,-1413.09984185,0.00012822,2]
[407987001,1772974238378,-1413.09984185,0.00012822,2]
[407987002,1772974238387,-1413.09984185,0.00012822,2]
[407987003,1772974238396,-1413.09984185,0.00012822,2]
[407987004,1772974238405,-1413.09984185,0.00012822,2]
[407987005,1772974238414,-1413.09984185,0.00012822,2]
[407987006,1772974238423,-1413.09984185,0.00012822,2]
[407987007,1772974238432,-1413.09984185,0.00012822,2]
[407987008,1772974238441,-1413.09984185,0.00012822,2]
[407987009,1772974238451,-1413.09984185,0.00012822,2]
[407987010,1772974238461,-1413.09984185,0.00012822,2]
[407987011,1772974238469,-1413.09984185,0.00012822,2]
[407987012,1772974238478,-1413.09984185,0.00012822,2]
[407987013,1772974238487,-1413.09984185,0.00012822,2]
[407987014,1772974238496,-1413.09984185,0.00012822,2]
[407987015,1772974238505,-1413.09984185,0.00012822,2]
[407987016,1772974238514,-1413.09984185,0.00012822,2]
[407987017,1772974238523,-1413.09984185,0.00012822,2]
[407987018,1772974238532,-1413.09984185,0.00012822,2]
[407987019,1772974238541,-1413.09984185,0.00012822,2]
[407987020,1772974238551,-1413.09984185,0.00012822,2]
[407987021,1772974238560,-1413.09984185,0.00012822,2]
[407987022,1772974238569,-1413.09984185,0.00012822,2]
[407987024,1772974238578,-1413.09984185,0.00012822,2]
[407987026,1772974238587,-1413.09984185,0.00012822,2]
[407987028,1772974238598,-1413.09984185,0.00012822,2]
[407987030,1772974238607,-1413.09984185,0.00012822,2]
[407987032,1772974238616,-1413.09984185,0.00012822,2]
[407987033,1772974238625,-1413.09984185,0.00012822,2]
[407987034,1772974238635,-1413.09984185,0.00012822,2]
[407987035,1772974238645,-1413.09984185,0.00012822,2]
[407987036,1772974238654,-1413.09984185,0.00012822,2]
[407987037,1772974238664,-1413.09984185,0.00012822,2]